[Event "4NCL 2nd Div 2023-24"]
[Site "Daventry"]
[Date "2024.05.05"]
[Round "10.23"]
[White "Farrand, Tom"]
[Black "Duggan, John E"]
[Result "1-0"]
[ECO "A29"]
[WhiteElo "2079"]
[BlackElo "2044"]
[Annotator "RC"]
[PlyCount "107"]
[EventDate "2023.11.11"]
[EventType "team-tourn"]
[EventCountry "ENG"]
[SourceTitle "playchess.com"]
[Source "ChessBase"]
[SourceQuality "1"]
[TimeControl "40/6000+30:3000+30"]

1. c4 {[%emt 0:00:08]} Nf6 {[%emt 0:00:24]} 2. g3 {[%emt 0:00:13]} e5 {[%emt 0:00:12]} 3. Bg2 {[%emt 0:00:11]} d5 {[%emt 0:00:19]} 4. cxd5 {[%emt 0:00:16]} Nxd5 {[%emt 0:00:02]} 5. Nc3 {[%emt 0:00:58]} Nb6 {[%emt 0:00:28]} 6. Nf3 {[%emt 0:00:55]} Nc6 {[%emt 0:00:27]} 7. O-O {[%emt 0:00:26]} Be7 {[%emt 0:00:57]} 8. d3 {[%emt 0:03:54]} O-O {[%emt 0:03:16]} 9. a3 {[%emt 0:00:30]} Be6 {[%emt 0:05:03]} 10. b4 {[%emt 0:05:43]} a6 {[%emt 0:14:50]} 11. Bb2 {[%emt 0:06:24]} f6 {[%emt 0:00:42]} 12. Rc1 {[%emt 0:09:18]} Qd7 {[%emt 0:07:08]} 13. Ne4 {[%emt 0:04:38]} Nd8 {[%emt 0:25:44]} 14. Qc2 {[%emt 0:02:48]} c6 {[%emt 0:04:49]} 15. Rfd1 {[%emt 0:02:09]} Bd5 {[%emt 0:07:35]} 16. Nc5 {[%emt 0:02:30]} Qc8 {[%emt 0:06:58]} 17. e4 {[%emt 0:01:52]} Bf7 {[%emt 0:00:01]} 18. Na4 {[%emt 0:11:06]} Nxa4 {[%emt 0:02:10]} 19. Qxa4 {[%emt 0:00:48]} Ne6 {[%emt 0:00:11]} 20. d4 {[%emt 0:00:25]} Nxd4 {[%emt 0:00:34]} 21. Nxd4 {[%emt 0:01:03]} exd4 {[%emt 0:00:01]} 22. Bxd4 {[%emt 0:01:37]} Qc7 {[%emt 0:00:41]} 23. Qc2 {[%emt 0:08:23]} Rfd8 {[%emt 0:04:17]} 24. Qc3 {[%emt 0:01:33]} Bh5 {[%emt 0:05:58]} 25. Re1 {[%emt 0:05:28]} Bd6 {[%emt 0:01:26]} 26. Qe3 {[%emt 0:01:15]} Re8 {[%emt 0:00:59]} 27. f3 {[%emt 0:04:15]} Qf7 {[%emt 0:01:56]} 28. Bf1 {[%emt 0:04:52]} Qe7 {[%emt 0:00:35]} 29. Rcd1 {[%emt 0:06:39]} Rad8 {[%emt 0:01:12]} 30. Bb6 {[%emt 0:01:04]} Bc7 {[%emt 0:00:24]} 31. Bc4+ {[%emt 0:03:31]} Bf7 {[%emt 0:00:54]} 32. Bc5 {[%emt 0:01:56]} Bd6 {[%emt 0:00:18]} 33. Bxf7+ {[%emt 0:01:18]} Kxf7 {[%emt 0:00:06]} 34. Bb6 {[%emt 0:04:08]} Rd7 {[%emt 0:03:32]} 35. Kg2 {[%emt 0:05:13]} Qe6 {[%emt 0:01:58]} 36. Rd2 {[%emt 0:03:31]} Bc7 {[%emt 0:02:49]} 37. Bxc7 {[%emt 0:02:49]} Rxc7 {[%emt 0:00:11]} 38. Red1 {[%emt 0:00:28]} Ree7 {[%emt 0:01:20]} 39. Rd6 {[%emt 0:00:51]} Qc4 {[%emt 0:01:16]} 40. R6d4 {[%emt 0:02:18]} Qe6 {[%emt 0:00:41]} 41. Rd6 {[%emt 0:51:43]} Qc4 {[%emt 0:51:11]} 42. R1d4 {[%emt 0:00:00]} Qa2+ {[%emt 0:00:00]} 43. Rd2 {[%emt 0:00:00]} Qc4 {[%emt 0:00:00]} 44. Qf4 {[%emt 0:00:00]} Qb5 {[%emt 0:00:00]} 45. Qe3 {[%emt 0:00:00]} Qc4 {[%emt 0:00:00]} 46. R6d4 {[%emt 0:00:00]} Qe6 {[%emt 0:00:00]} 47. Qd3 {[%emt 0:00:00]} g5 {[%emt 0:00:00]} 48. e5 {[%emt 0:00:00]} f5 {[%emt 0:00:00]} 49. f4 {[%emt 0:00:00]} gxf4 {[%emt 0:00:00]} 50. gxf4 {[%emt 0:00:00]} Qg6+ {[%emt 0:00:00]} 51. Kh1 {[%emt 0:00:00]} c5 {[%emt 0:00:00]} 52. Rd6 {[%emt 0:00:00]} Re6 {[%emt 0:00:00]} 53. Rg2 {[%emt 0:00:00]} c4 {[%emt 0:00:00]} 54. Rxg6 {[%emt 0:00:00]} 1-0

[Event "4NCL 2nd Div 2023-24"]
[Site "Daventry"]
[Date "2024.05.05"]
[Round "10.24"]
[White "Jaufarally, Nadia"]
[Black "Frostick, Helen M"]
[Result "1-0"]
[ECO "B30"]
[WhiteElo "1914"]
[BlackElo "1904"]
[Annotator "NA RC"]
[PlyCount "75"]
[EventDate "2023.11.11"]
[EventType "team-tourn"]
[EventCountry "ENG"]
[SourceTitle "playchess.com"]
[Source "ChessBase"]
[SourceQuality "1"]
[TimeControl "40/6000+30:3000+30"]

1. e4 {[%emt 0:01:19]} c5 {[%emt 0:00:32]} 2. Nf3 {[%emt 0:00:09]} Nc6 {[%emt 0:00:25]} 3. Bb5 {[%emt 0:00:08]} a6 {[%emt 0:02:40]} 4. Bxc6 {[%emt 0:00:17]} bxc6 {[%emt 0:00:17]} 5. O-O {[%emt 0:01:11]} e6 {[%emt 0:49:31]} 6. Re1 {[%emt 0:05:59]} d5 {[%emt 0:04:11]} 7. exd5 {[%emt 0:07:41]} cxd5 {[%emt 0:00:09]} 8. d4 {[%emt 0:01:05]} Nf6 {[%emt 0:10:30]} 9. Nc3 {[%emt 0:02:57]} Be7 {[%emt 0:01:38]} 10. Ne5 {[%emt 0:04:46]} Bb7 {[%emt 0:06:31]} 11. Be3 {[%emt 0:01:41]} cxd4 {[%emt 0:02:19]} 12. Bxd4 {[%emt 0:03:40]} O-O {[%emt 0:00:45]} 13. Qd3 {[%emt 0:00:58]} Nd7 {[%emt 0:04:13]} 14. Nxd7 {[%emt 0:01:57]} Qxd7 {[%emt 0:00:04]} 15. Re3 {[%emt 0:00:26]} Qc6 {[%emt 0:08:10]} 16. Rh3 {[%emt 0:03:42]} g6 {[%emt 0:00:38]} 17. Rxh7 {[%emt 0:02:35]} e5 {[%emt 0:03:08]} 18. Bxe5 {[%emt 0:00:38]} Bf6 {[%emt 0:00:16]} 19. Bxf6 {[%emt 0:01:53]} Qxf6 {[%emt 0:00:02]} 20. Rh3 {[%emt 0:00:29]} Rad8 {[%emt 0:01:55]} 21. Rd1 {[%emt 0:03:24]} Rfe8 {[%emt 0:02:27]} 22. Rf3 {[%emt 0:02:03]} Qe7 {[%emt 0:01:18]} 23. Re3 {[%emt 0:00:26]} Qg5 {[%emt 0:06:46]} 24. Qd4 {[%emt 0:03:11]} Rxe3 {[%emt 0:01:46]} 25. Qxe3 {[%emt 0:00:08]} Qf5 {[%emt 0:00:49]} 26. Qd3 {[%emt 0:02:19]} Qf6 {[%emt 0:00:28]} 27. Qd4 {[%emt 0:06:04]} Qf5 {[%emt 0:00:29]} 28. Re1 {[%emt 0:00:20]} Qxc2 {[%emt 0:00:47]} 29. Qb6 {[%emt 0:00:39]} Rd7 {[%emt 0:01:13]} 30. Qf6 {[%emt 0:00:16]} Kh7 {[%emt 0:00:44]} 31. h3 {[%emt 0:01:20]} Qf5 {[%emt 0:00:36]} 32. Qh4+ {[%emt 0:01:20]} Qh5 {[%emt 0:00:25]} 33. Qd4 {[%emt 0:00:23]} Qf5 {[%emt 0:00:42]} 34. Re8 {[%emt 0:00:27]} f6 {[%emt 0:00:09]} 35. Qh4+ {[%emt 0:00:11]} Qh5 {[%emt 0:00:42]} 36. Qxf6 {[%emt 0:00:16]} Rg7 {[%emt 0:00:13]} 37. Qf8 {[%emt 0:00:21]} g5 {[%emt 0:00:53]} 38. Qh8+ {[%emt 0:00:27]} 1-0

[Event "4NCL 2nd Div 2023-24"]
[Site "Daventry"]
[Date "2024.05.05"]
[Round "10.25"]
[White "Atako, Chino C"]
[Black "Kanellopoulos, Panayotis"]
[Result "1/2-1/2"]
[ECO "B92"]
[WhiteElo "2007"]
[BlackElo "2243"]
[Annotator "RC"]
[PlyCount "84"]
[EventDate "2023.11.11"]
[EventType "team-tourn"]
[EventCountry "ENG"]
[SourceTitle "playchess.com"]
[Source "ChessBase"]
[SourceQuality "1"]
[TimeControl "40/6000+30:3000+30"]

1. e4 {[%emt 0:03:00]} c5 {[%emt 0:00:11]} 2. Nf3 {[%emt 0:00:10]} d6 {[%emt 0:00:06]} 3. d4 {[%emt 0:00:05]} cxd4 {[%emt 0:00:10]} 4. Nxd4 {[%emt 0:00:09]} Nf6 {[%emt 0:00:13]} 5. Nc3 {[%emt 0:00:06]} a6 {[%emt 0:00:05]} 6. Be2 {[%emt 0:00:06]} e5 {[%emt 0:01:16]} 7. Nb3 {[%emt 0:00:02]} Be7 {[%emt 0:00:16]} 8. Be3 {[%emt 0:00:10]} Be6 {[%emt 0:00:57]} 9. O-O {[%emt 0:02:22]} Nbd7 {[%emt 0:01:14]} 10. f4 {[%emt 0:00:21]} Rc8 {[%emt 0:00:47]} 11. f5 {[%emt 0:10:34]} Bc4 {[%emt 0:00:24]} 12. Bxc4 {[%emt 0:01:51]} Rxc4 {[%emt 0:00:05]} 13. Qf3 {[%emt 0:00:12]} b5 {[%emt 0:01:00]} 14. a3 {[%emt 0:01:03]} Qa8 {[%emt 0:06:19]} 15. Nd2 {[%emt 0:02:59]} Rc7 {[%emt 0:01:44]} 16. Rfe1 {[%emt 0:05:38]} h5 {[%emt 0:02:35]} 17. Kh1 {[%emt 0:00:56]} O-O {[%emt 0:01:31]} 18. Nf1 {[%emt 0:02:14]} Rc4 {[%emt 0:00:22]} 19. Bg5 {[%emt 0:00:17]} Bd8 {[%emt 0:04:29]} 20. Ne3 {[%emt 0:09:47]} Rd4 {[%emt 0:09:59]} 21. Ne2 {[%emt 0:02:14]} Rd2 {[%emt 0:23:14]} 22. Nc3 {[%emt 0:14:32]} Ng4 {[%emt 0:07:30]} 23. Nxg4 {[%emt 0:00:57]} Bxg5 {[%emt 0:01:06]} 24. Ne3 {[%emt 0:00:09]} Bxe3 {[%emt 0:02:38]} 25. Rxe3 {[%emt 0:00:22]} Nf6 {[%emt 0:00:10]} 26. Re2 {[%emt 0:02:38]} Rd4 {[%emt 0:03:46]} 27. h3 {[%emt 0:06:46]} Re8 {[%emt 0:03:05]} 28. Rae1 {[%emt 0:00:31]} Qc6 {[%emt 0:06:08]} 29. Nd1 {[%emt 0:00:30]} d5 {[%emt 0:01:44]} 30. exd5 {[%emt 0:00:48]} Qxd5 {[%emt 0:00:37]} 31. Qxd5 {[%emt 0:01:47]} Rxd5 {[%emt 0:04:32]} 32. Nf2 {[%emt 0:00:54]} Kf8 {[%emt 0:03:51]} 33. Kg1 {[%emt 0:04:21]} Rc8 {[%emt 0:04:54]} 34. c3 {[%emt 0:00:30]} Nd7 {[%emt 0:01:40]} 35. Ne4 {[%emt 0:00:58]} f6 {[%emt 0:02:11]} 36. Ng3 {[%emt 0:01:04]} h4 {[%emt 0:00:30]} 37. Ne4 {[%emt 0:00:55]} Rc4 {[%emt 0:01:21]} 38. Nd2 {[%emt 0:01:44]} Rf4 {[%emt 0:01:51]} 39. Rf1 {[%emt 0:00:20]} Rxf1+ {[%emt 0:08:45]} 40. Kxf1 {[%emt 0:00:48]} e4 {[%emt 0:00:57]} 41. Nxe4 {[%emt 0:50:38]} Rxf5+ {[%emt 0:50:22]} 42. Ke1 {[%emt 0:00:29]} Re5 {[%emt 0:00:00]} 1/2-1/2

[Event "4NCL 2nd Div 2023-24"]
[Site "Daventry"]
[Date "2024.05.05"]
[Round "10.26"]
[White "Player, Edmund C"]
[Black "Lee, Richard W Y"]
[Result "1-0"]
[ECO "B95"]
[WhiteElo "2159"]
[BlackElo "2117"]
[Annotator "RC"]
[PlyCount "131"]
[EventDate "2023.11.11"]
[EventType "team-tourn"]
[EventCountry "ENG"]
[SourceTitle "playchess.com"]
[Source "ChessBase"]
[SourceQuality "1"]
[TimeControl "40/6000+30:3000+30"]

1. e4 {[%emt 0:00:13]} c5 {[%emt 0:00:20]} 2. Nf3 {[%emt 0:00:15]} e6 {[%emt 0:00:14]} 3. Nc3 {[%emt 0:03:18]} d6 {[%emt 0:00:49]} 4. d4 {[%emt 0:06:00]} cxd4 {[%emt 0:00:16]} 5. Nxd4 {[%emt 0:01:46]} Nf6 {[%emt 0:00:20]} 6. Bg5 {[%emt 0:02:39]} Be7 {[%emt 0:00:50]} 7. Qd2 {[%emt 0:05:30]} a6 {[%emt 0:02:41]} 8. f3 {[%emt 0:16:47]} h6 {[%emt 0:19:49]} 9. Be3 {[%emt 0:00:37]} h5 {[%emt 0:02:40]} 10. O-O-O {[%emt 0:02:30]} Qc7 {[%emt 0:13:35]} 11. Nb3 {[%emt 0:07:52]} Nbd7 {[%emt 0:03:59]} 12. a4 {[%emt 0:10:11]} b6 {[%emt 0:04:55]} 13. Bf4 {[%emt 0:11:08]} e5 {[%emt 0:09:53]} 14. Bg5 {[%emt 0:02:26]} Bb7 {[%emt 0:01:24]} 15. Kb1 {[%emt 0:00:45]} O-O {[%emt 0:17:07]} 16. Nc1 {[%emt 0:02:28]} Rfd8 {[%emt 0:03:13]} 17. N1a2 {[%emt 0:04:13]} d5 {[%emt 0:03:42]} 18. exd5 {[%emt 0:00:51]} Bxd5 {[%emt 0:00:55]} 19. Nxd5 {[%emt 0:07:07]} Nxd5 {[%emt 0:00:08]} 20. Bxe7 {[%emt 0:06:21]} Nxe7 {[%emt 0:00:06]} 21. Qc3 {[%emt 0:11:51]} Nc5 {[%emt 0:04:45]} 22. Bc4 {[%emt 0:03:33]} a5 {[%emt 0:07:50]} 23. Rhe1 {[%emt 0:02:31]} Rxd1+ {[%emt 0:04:12]} 24. Rxd1 {[%emt 0:00:01]} Rc8 {[%emt 0:01:44]} 25. Bb5 {[%emt 0:01:04]} Nf5 {[%emt 0:02:36]} 26. Qd2 {[%emt 0:00:51]} Nd4 {[%emt 0:01:40]} 27. Nc3 {[%emt 0:00:04]} Qe7 {[%emt 0:03:15]} 28. Nd5 {[%emt 0:00:53]} Qd6 {[%emt 0:00:20]} 29. Ne3 {[%emt 0:00:21]} Rd8 {[%emt 0:00:58]} 30. Nc4 {[%emt 0:00:32]} Qc7 {[%emt 0:00:21]} 31. Qg5 {[%emt 0:00:33]} Nxa4 {[%emt 0:00:46]} 32. Qxe5 {[%emt 0:00:39]} Qxe5 {[%emt 0:00:29]} 33. Nxe5 {[%emt 0:00:06]} Nc5 {[%emt 0:00:25]} 34. Nc4 {[%emt 0:00:51]} Nce6 {[%emt 0:00:41]} 35. Ba6 {[%emt 0:00:37]} Ra8 {[%emt 0:00:27]} 36. Bb7 {[%emt 0:00:10]} Ra7 {[%emt 0:00:26]} 37. Bd5 {[%emt 0:00:44]} b5 {[%emt 0:00:28]} 38. Ne5 {[%emt 0:00:22]} b4 {[%emt 0:00:38]} 39. Rd2 {[%emt 0:00:48]} Kf8 {[%emt 0:00:28]} 40. c3 {[%emt 0:00:26]} bxc3 {[%emt 0:00:27]} 41. bxc3 {[%emt 0:50:11]} Nb5 {[%emt 0:00:39]} 42. Bxe6 {[%emt 0:00:00]} Nxc3+ {[%emt 0:01:22]} 43. Kc2 {[%emt 0:00:00]} Rc7 {[%emt 0:02:13]} 44. Rd8+ {[%emt 0:00:00]} Ke7 {[%emt 0:00:06]} 45. Rd7+ {[%emt 0:00:00]} Rxd7 {[%emt 0:00:07]} 46. Bxd7 {[%emt 0:00:00]} Nd5 {[%emt 0:01:19]} 47. Bb5 {[%emt 0:00:00]} Ne3+ {[%emt 0:02:22]} 48. Kd3 {[%emt 0:00:00]} Nxg2 {[%emt 0:00:09]} 49. Nc6+ {[%emt 0:00:00]} Kf6 {[%emt 0:06:10]} 50. Nxa5 {[%emt 0:00:00]} Kg5 {[%emt 0:01:18]} 51. Ke2 {[%emt 0:00:00]} Kh4 {[%emt 0:12:26]} 52. Kf2 {[%emt 0:00:00]} Nf4 {[%emt 0:00:06]} 53. Nc6 {[%emt 0:00:00]} Kh3 {[%emt 0:01:50]} 54. Kg1 {[%emt 0:00:00]} g5 {[%emt 0:13:30]} 55. Ne5 {[%emt 0:00:00]} f6 {[%emt 0:03:37]} 56. Nd3 {[%emt 0:02:03]} Ne2+ {[%emt 0:02:11]} 57. Kh1 {[%emt 0:00:26]} Nd4 {[%emt 0:02:13]} 58. Bd7+ {[%emt 0:00:14]} f5 {[%emt 0:01:45]} 59. Nf2+ {[%emt 0:00:41]} Kh4 {[%emt 0:00:01]} 60. Kg2 {[%emt 0:00:13]} Nc2 {[%emt 0:01:55]} 61. Nd3 {[%emt 0:01:25]} Nd4 {[%emt 0:02:36]} 62. Ne5 {[%emt 0:01:20]} Nxf3 {[%emt 0:01:11]} 63. Nxf3+ {[%emt 0:00:08]} Kg4 {[%emt 0:00:02]} 64. Nd4 {[%emt 0:00:18]} Kf4 {[%emt 0:00:49]} 65. Nxf5 {[%emt 0:00:11]} Kg4 {[%emt 0:01:18]} 66. Ng7+ {[%emt 0:00:50]} 1-0

[Event "4NCL 2nd Div 2023-24"]
[Site "Daventry"]
[Date "2024.05.05"]
[Round "10.27"]
[White "Webster, Peter A N"]
[Black "Lewis, Andrew P"]
[Result "0-1"]
[ECO "B22"]
[WhiteElo "1939"]
[BlackElo "2252"]
[Annotator "RC"]
[PlyCount "154"]
[EventDate "2023.11.11"]
[EventType "team-tourn"]
[EventCountry "ENG"]
[SourceTitle "playchess.com"]
[Source "ChessBase"]
[SourceQuality "1"]
[TimeControl "40/6000+30:3000+30"]

1. e4 {[%emt 0:00:03]} c5 {[%emt 0:00:23]} 2. c3 {[%emt 0:00:06]} Nf6 {[%emt 0:00:17]} 3. e5 {[%emt 0:00:09]} Nd5 {[%emt 0:00:16]} 4. d4 {[%emt 0:00:11]} cxd4 {[%emt 0:00:39]} 5. Nf3 {[%emt 0:00:12]} e6 {[%emt 0:00:39]} 6. cxd4 {[%emt 0:00:23]} b6 {[%emt 0:01:54]} 7. Nc3 {[%emt 0:05:59]} Nxc3 {[%emt 0:00:42]} 8. bxc3 {[%emt 0:00:06]} Qc7 {[%emt 0:00:44]} 9. Bd2 {[%emt 0:00:54]} Bb7 {[%emt 0:00:54]} 10. Bd3 {[%emt 0:01:15]} d6 {[%emt 0:00:33]} 11. O-O {[%emt 0:01:17]} Nd7 {[%emt 0:03:09]} 12. Ng5 {[%emt 0:06:40]} dxe5 {[%emt 0:08:56]} 13. Qh5 {[%emt 0:07:31]} g6 {[%emt 0:02:02]} 14. Qh3 {[%emt 0:01:19]} Be7 {[%emt 0:03:56]} 15. f4 {[%emt 0:20:19]} Bxg5 {[%emt 0:05:59]} 16. fxg5 {[%emt 0:00:18]} O-O {[%emt 0:00:36]} 17. Rae1 {[%emt 0:03:08]} Rad8 {[%emt 0:15:08]} 18. Be4 {[%emt 0:02:07]} Bd5 {[%emt 0:11:48]} 19. Rf3 {[%emt 0:06:01]} Nc5 {[%emt 0:06:57]} 20. Bxd5 {[%emt 0:14:43]} Rxd5 {[%emt 0:00:10]} 21. c4 {[%emt 0:01:34]} Rxd4 {[%emt 0:05:45]} 22. Bc3 {[%emt 0:00:50]} Qd6 {[%emt 0:01:00]} 23. Bxd4 {[%emt 0:05:41]} Qxd4+ {[%emt 0:00:35]} 24. Rfe3 {[%emt 0:03:51]} e4 {[%emt 0:01:04]} 25. Qg4 {[%emt 0:04:29]} Qxc4 {[%emt 0:08:34]} 26. Qe2 {[%emt 0:01:36]} Qd5 {[%emt 0:01:15]} 27. h4 {[%emt 0:01:31]} Rd8 {[%emt 0:02:50]} 28. Rf1 {[%emt 0:01:14]} Qd4 {[%emt 0:08:01]} 29. Qf2 {[%emt 0:02:04]} Rd7 {[%emt 0:01:11]} 30. Re2 {[%emt 0:03:26]} Qe5 {[%emt 0:07:33]} 31. Qf4 {[%emt 0:04:09]} Qxf4 {[%emt 0:03:11]} 32. Rxf4 {[%emt 0:00:08]} h6 {[%emt 0:00:22]} 33. gxh6 {[%emt 0:00:53]} Kh7 {[%emt 0:00:59]} 34. g4 {[%emt 0:03:24]} f5 {[%emt 0:01:41]} 35. g5 {[%emt 0:02:03]} e5 {[%emt 0:00:10]} 36. Rf1 {[%emt 0:01:34]} f4 {[%emt 0:00:31]} 37. Rfe1 {[%emt 0:01:47]} e3 {[%emt 0:02:09]} 38. Rc2 {[%emt 0:00:59]} e4 {[%emt 0:03:00]} 39. Kf1 {[%emt 0:03:01]} Rd3 {[%emt 0:02:25]} 40. h5 {[%emt 0:01:35]} f3 {[%emt 0:00:48]} 41. hxg6+ {[%emt 0:51:43]} Kxg6 {[%emt 0:51:36]} 42. Rh2 {[%emt 0:00:42]} e2+ {[%emt 0:00:00]} 43. Kf2 {[%emt 0:00:00]} Rd7 {[%emt 0:00:00]} 44. Ke3 {[%emt 0:00:00]} Nd3 {[%emt 0:00:00]} 45. Rexe2 {[%emt 0:00:00]} fxe2 {[%emt 0:00:00]} 46. Rxe2 {[%emt 0:00:00]} Nc5 {[%emt 0:00:00]} 47. Rh2 {[%emt 0:00:00]} Rd3+ {[%emt 0:00:00]} 48. Kf4 {[%emt 0:00:00]} Rf3+ {[%emt 0:00:00]} 49. Kg4 {[%emt 0:00:00]} Rf7 {[%emt 0:00:00]} 50. Rd2 {[%emt 0:00:00]} Nd3 {[%emt 0:00:00]} 51. Re2 {[%emt 0:00:00]} Rf4+ {[%emt 0:00:00]} 52. Kg3 {[%emt 0:00:00]} Kxg5 {[%emt 0:00:00]} 53. h7 {[%emt 0:00:00]} Rg4+ {[%emt 0:00:00]} 54. Kh2 {[%emt 0:00:00]} Rh4+ {[%emt 0:00:00]} 55. Kg3 {[%emt 0:00:00]} Rxh7 {[%emt 0:00:00]} 56. Rxe4 {[%emt 0:00:00]} Kf5 {[%emt 0:00:00]} 57. Rd4 {[%emt 0:00:00]} Ne5 {[%emt 0:00:00]} 58. Ra4 {[%emt 0:00:00]} a5 {[%emt 0:00:00]} 59. Kg2 {[%emt 0:00:00]} Rc7 {[%emt 0:00:00]} 60. Kf1 {[%emt 0:00:00]} Rc4 {[%emt 0:00:00]} 61. Ra3 {[%emt 0:00:00]} a4 {[%emt 0:00:00]} 62. Ke2 {[%emt 0:00:00]} b5 {[%emt 0:00:00]} 63. Kd1 {[%emt 0:00:00]} Rh4 {[%emt 0:00:00]} 64. Kc1 {[%emt 0:00:00]} Rh2 {[%emt 0:01:42]} 65. Kb1 {[%emt 0:00:00]} Ke4 {[%emt 0:01:11]} 66. Rc3 {[%emt 0:00:00]} Kd4 {[%emt 0:02:08]} 67. Rc8 {[%emt 0:01:26]} b4 {[%emt 0:02:22]} 68. Rc1 {[%emt 0:01:24]} Nd3 {[%emt 0:01:18]} 69. Rd1 {[%emt 0:00:57]} Rb2+ {[%emt 0:00:54]} 70. Ka1 {[%emt 0:00:16]} Re2 {[%emt 0:00:37]} 71. Kb1 {[%emt 0:02:33]} Re1 {[%emt 0:01:13]} 72. Rxe1 {[%emt 0:01:19]} Nxe1 {[%emt 0:00:08]} 73. Kb2 {[%emt 0:00:27]} Kc4 {[%emt 0:00:48]} 74. Kb1 {[%emt 0:01:06]} Kc3 {[%emt 0:00:23]} 75. Ka1 {[%emt 0:00:25]} b3 {[%emt 0:00:36]} 76. axb3 {[%emt 0:00:42]} axb3 {[%emt 0:01:09]} 77. Kb1 {[%emt 0:00:15]} b2 {[%emt 0:01:06]} 0-1

[Event "4NCL 2nd Div 2023-24"]
[Site "Daventry"]
[Date "2024.05.05"]
[Round "10.28"]
[White "Talsma, Paul"]
[Black "Camp, Imogen A L"]
[Result "1/2-1/2"]
[ECO "D63"]
[WhiteElo "2073"]
[BlackElo "1899"]
[Annotator "RC"]
[PlyCount "114"]
[EventDate "2023.11.11"]
[EventType "team-tourn"]
[EventCountry "ENG"]
[SourceTitle "playchess.com"]
[Source "ChessBase"]
[SourceQuality "1"]
[TimeControl "40/6000+30:3000+30"]

1. d4 {[%emt 0:00:51]} d5 {[%emt 0:00:08]} 2. c4 {[%emt 0:00:09]} e6 {[%emt 0:00:09]} 3. Nc3 {[%emt 0:00:08]} Nf6 {[%emt 0:00:12]} 4. Bg5 {[%emt 0:00:15]} Be7 {[%emt 0:00:06]} 5. e3 {[%emt 0:00:12]} O-O {[%emt 0:00:27]} 6. Rc1 {[%emt 0:00:12]} Nbd7 {[%emt 0:02:03]} 7. Nf3 {[%emt 0:00:12]} c6 {[%emt 0:00:24]} 8. a3 {[%emt 0:00:16]} h6 {[%emt 0:01:32]} 9. Bh4 {[%emt 0:00:46]} Re8 {[%emt 0:02:45]} 10. Bd3 {[%emt 0:01:45]} dxc4 {[%emt 0:01:14]} 11. Bxc4 {[%emt 0:00:11]} c5 {[%emt 0:09:28]} 12. O-O {[%emt 0:03:16]} a6 {[%emt 0:03:54]} 13. Ba2 {[%emt 0:14:56]} b5 {[%emt 0:12:13]} 14. d5 {[%emt 0:12:38]} Nf8 {[%emt 0:08:19]} 15. e4 {[%emt 0:19:14]} Nxd5 {[%emt 0:18:52]} 16. Bxd5 {[%emt 0:10:20]} exd5 {[%emt 0:02:02]} 17. Bxe7 {[%emt 0:00:19]} Rxe7 {[%emt 0:14:25]} 18. exd5 {[%emt 0:05:49]} Bb7 {[%emt 0:03:45]} 19. Qd2 {[%emt 0:08:17]} Qd6 {[%emt 0:03:22]} 20. Rfe1 {[%emt 0:01:35]} Rae8 {[%emt 0:01:17]} 21. Rxe7 {[%emt 0:06:04]} Rxe7 {[%emt 0:00:06]} 22. Re1 {[%emt 0:00:59]} Rxe1+ {[%emt 0:00:35]} 23. Nxe1 {[%emt 0:00:19]} Nd7 {[%emt 0:01:35]} 24. Nc2 {[%emt 0:02:52]} b4 {[%emt 0:07:07]} 25. axb4 {[%emt 0:01:53]} cxb4 {[%emt 0:00:04]} 26. Ne2 {[%emt 0:00:18]} a5 {[%emt 0:01:31]} 27. Ne3 {[%emt 0:00:26]} Nb6 {[%emt 0:00:46]} 28. Ng3 {[%emt 0:04:56]} Nxd5 {[%emt 0:03:23]} 29. Ngf5 {[%emt 0:00:32]} Qe5 {[%emt 0:02:04]} 30. h3 {[%emt 0:00:55]} Nxe3 {[%emt 0:00:18]} 31. Nxe3 {[%emt 0:00:17]} Qe4 {[%emt 0:01:36]} 32. Qd8+ {[%emt 0:05:22]} Kh7 {[%emt 0:00:04]} 33. Qxa5 {[%emt 0:00:17]} Qb1+ {[%emt 0:00:14]} 34. Kh2 {[%emt 0:00:07]} Qxb2 {[%emt 0:00:07]} 35. Qc7 {[%emt 0:01:32]} Qxf2 {[%emt 0:03:00]} 36. Qxb7 {[%emt 0:00:12]} Qxe3 {[%emt 0:00:30]} 37. Qxb4 {[%emt 0:00:10]} Qf2 {[%emt 0:00:18]} 38. Qe4+ {[%emt 0:01:25]} g6 {[%emt 0:00:13]} 39. Qd3 {[%emt 0:04:25]} h5 {[%emt 0:00:47]} 40. Qe4 {[%emt 0:00:51]} h4 {[%emt 0:02:32]} 41. Qe7 {[%emt 0:54:33]} Kh6 {[%emt 0:52:42]} 42. Kh1 {[%emt 0:00:00]} Qf1+ {[%emt 0:00:00]} 43. Kh2 {[%emt 0:00:00]} Qf4+ {[%emt 0:00:00]} 44. Kh1 {[%emt 0:00:00]} g5 {[%emt 0:00:00]} 45. Qd8 {[%emt 0:00:00]} Kg6 {[%emt 0:00:00]} 46. Qg8+ {[%emt 0:00:00]} Kf6 {[%emt 0:00:00]} 47. Qd8+ {[%emt 0:00:00]} Ke5 {[%emt 0:00:00]} 48. Qb8+ {[%emt 0:00:00]} Ke4 {[%emt 0:00:00]} 49. Qb4+ {[%emt 0:00:00]} Ke3 {[%emt 0:00:00]} 50. Qe1+ {[%emt 0:00:00]} Kd3 {[%emt 0:00:00]} 51. Qd1+ {[%emt 0:00:00]} Kc3 {[%emt 0:00:00]} 52. Qe1+ {[%emt 0:00:00]} Kc2 {[%emt 0:00:00]} 53. Qe2+ {[%emt 0:00:00]} Kb1 {[%emt 0:00:00]} 54. Qe7 {[%emt 0:00:00]} f5 {[%emt 0:00:00]} 55. Qd8 {[%emt 0:00:00]} Kc2 {[%emt 0:00:00]} 56. Kg1 {[%emt 0:00:00]} Kc3 {[%emt 0:00:00]} 57. Kh1 {[%emt 0:00:00]} Qf1+ {[%emt 0:00:00]} 1/2-1/2